bitfinex/quotes_BTCUSD_20241013
["timestamp","ask_amount","ask_price","bid_price","bid_amount"]
[1728862986891,0.24272356,62926.0,62915.0,0.70632394]
[1728862987110,0.24272356,62926.0,62915.0,0.69232394]
[1728862987326,0.24272356,62926.0,62915.0,0.70632394]
[1728862987754,0.24272356,62926.0,62915.0,0.69232394]
[1728862987966,0.24272356,62926.0,62915.0,0.70632394]
[1728862988179,0.24272356,62926.0,62915.0,0.72032394]
[1728862988401,0.24272356,62926.0,62915.0,0.70632394]
[1728862988652,0.24272356,62926.0,62915.0,0.72032394]
[1728862988890,0.24272356,62926.0,62915.0,0.70632394]
[1728862989112,0.0764,62919.0,62915.0,0.69232394]
[1728862989322,0.0764,62919.0,62915.0,0.70632394]
[1728862989746,0.0764,62919.0,62915.0,0.5399729]
[1728862989990,0.0764,62919.0,62915.0,0.70632394]
[1728862990429,0.0764,62919.0,62915.0,0.72032394]
[1728862990870,0.0764,62919.0,62915.0,0.5539729]
[1728862991092,0.0764,62919.0,62915.0,0.67076812]
[1728862993520,0.0005,62919.0,62915.0,0.67076812]
[1728862995094,0.0005,62919.0,62915.0,0.7497263]
[1728862995316,0.0005,62919.0,62918.0,0.313857]
[1728862995555,0.0005,62919.0,62918.0,0.52785045]
[1728862995776,0.0005,62919.0,62918.0,0.53335154]
[1728862998182,0.0005,62919.0,62918.0,0.56135154]
[1728862998853,0.0005,62919.0,62918.0,0.54735154]
[1728862999301,0.0005,62919.0,62918.0,0.56135154]
[1728862999516,0.0005,62919.0,62918.0,0.54735154]
[1728862999916,0.0005,62919.0,62918.0,0.56135154]
[1728863000417,0.0005,62919.0,62918.0,0.52435154]
[1728863000851,0.0005,62919.0,62918.0,0.53835154]
[1728863005729,0.060908,62930.0,62929.0,0.290829]
[1728863005943,0.060908,62930.0,62929.0,0.61840405]
[1728863006157,0.060908,62930.0,62929.0,0.62707358]
[1728863007705,0.060908,62930.0,62929.0,0.64107358]
[1728863008590,0.060908,62930.0,62929.0,0.65507358]
[1728863009240,0.060908,62930.0,62929.0,0.66696568]
[1728863012821,0.060908,62930.0,62929.0,0.65507358]
[1728863013024,0.060908,62930.0,62929.0,0.19557853]
[1728863013025,0.162308,62930.0,62929.0,0.19557853]
[1728863013678,0.162308,62930.0,62929.0,0.18157853]
[1728863013901,0.162308,62930.0,62929.0,0.16757853]
[1728863014120,0.162308,62930.0,62929.0,0.18157853]
[1728863014353,0.321214,62930.0,62929.0,0.02266953]
[1728863014819,0.321214,62930.0,62929.0,0.028]
[1728863015035,0.321214,62930.0,62929.0,0.014]
[1728863015265,0.321214,62930.0,62925.0,0.158918]
[1728863015266,0.1809,62926.0,62925.0,0.158918]
[1728863015713,0.1809,62926.0,62925.0,0.16811637]
[1728863017437,0.1809,62926.0,62925.0,0.17511637]
[1728863017928,0.344816,62926.0,62925.0,0.01619837]
[1728863018387,0.344816,62926.0,62925.0,0.007]
[1728863018574,0.344816,62926.0,62925.0,0.02319837]
[1728863018823,0.344816,62926.0,62925.0,0.014]
[1728863019064,0.176,62913.0,62912.0,0.55562256]
[1728863019275,0.176,62913.0,62912.0,0.39667556]
[1728863019743,0.2008977,62913.0,62912.0,0.158952]
[1728863020168,0.2008977,62913.0,62912.0,0.167952]
[1728863021253,0.2008977,62913.0,62912.0,0.173952]
[1728863021467,0.2008977,62913.0,62912.0,0.167952]
[1728863021674,0.176,62913.0,62912.0,0.166952]
[1728863022105,0.176,62913.0,62912.0,0.172952]
[1728863022545,0.176,62913.0,62912.0,0.166952]
[1728863022978,0.177,62913.0,62912.0,0.174952]
[1728863025678,0.177,62913.0,62912.0,0.016]
[1728863025897,0.177,62913.0,62912.0,0.174952]
[1728863026774,0.177,62913.0,62912.0,0.1871299]
[1728863032165,0.177,62913.0,62912.0,0.1887679]
[1728863048544,0.081,62913.0,62912.0,0.1887679]
[1728863052606,0.1755,62913.0,62912.0,0.1887679]
[1728863052829,0.1755,62913.0,62912.0,0.0298159]
[1728863053050,0.334449,62913.0,62912.0,0.0298159]
[1728863053298,0.339449,62913.0,62912.0,0.0298159]
[1728863053746,0.339449,62913.0,62912.0,0.017638]
[1728863053973,0.338449,62913.0,62912.0,0.02335345]
[1728863054214,0.338449,62913.0,62912.0,0.01535345]
[1728863054435,0.339449,62913.0,62912.0,0.01635345]
[1728863054666,0.339449,62913.0,62912.0,0.002638]
[1728863054886,0.338449,62913.0,62912.0,0.002638]
[1728863055332,0.338449,62913.0,62912.0,0.003638]
[1728863058573,0.1795,62913.0,62912.0,0.003638]
[1728863058793,0.338449,62913.0,62912.0,0.003638]
[1728863059020,0.338449,62913.0,62912.0,0.01735345]
[1728863059248,0.338449,62913.0,62912.0,0.003638]
[1728863059703,0.338449,62913.0,62912.0,0.01735345]
[1728863059925,0.338449,62913.0,62912.0,0.003638]
[1728863060161,0.338449,62913.0,62912.0,0.01735345]
[1728863060393,0.338449,62913.0,62912.0,0.003638]
[1728863060614,0.338449,62913.0,62912.0,0.01735345]
[1728863062532,0.38594803,62913.0,62912.0,0.01735345]
[1728863063267,0.338449,62913.0,62912.0,0.01735345]
[1728863063492,0.38594803,62913.0,62912.0,0.01735345]
[1728863063707,0.22699903,62913.0,62912.0,0.01735345]
[1728863063925,0.38594803,62913.0,62912.0,0.01735345]
[1728863064360,0.40969755,62913.0,62912.0,0.01735345]
[1728863064580,0.40969755,62913.0,62912.0,0.003638]
[1728863065238,0.40991834,62913.0,62912.0,0.003638]
[1728863066336,0.338449,62913.0,62912.0,0.003638]
[1728863067910,0.3860933,62913.0,62912.0,0.003638]
[1728863068130,0.338449,62913.0,62912.0,0.003638]
[1728863069667,0.3860938,62913.0,62912.0,0.003638]
[1728863069889,0.36334766,62913.0,62912.0,0.003638]
[1728863070557,0.43481483,62913.0,62912.0,0.003638]
[1728863071711,0.40991617,62913.0,62912.0,0.003638]
[1728863074749,0.36334771,62913.0,62912.0,0.003638]
[1728863078034,0.43481742,62913.0,62912.0,0.003638]
[1728863079557,0.43481638,62913.0,62912.0,0.003638]
[1728863081919,0.40991767,62913.0,62912.0,0.003638]
[1728863084414,0.4099231,62913.0,62912.0,0.003638]
[1728863084876,0.43482176,62913.0,62912.0,0.003638]
[1728863085102,0.20439866,62913.0,62912.0,0.003638]
[1728863085332,0.20439866,62913.0,62912.0,0.01747358]
[1728863085555,0.36334766,62913.0,62912.0,0.003638]
[1728863085779,0.36334766,62913.0,62912.0,0.01747358]
[1728863085780,0.27587276,62913.0,62912.0,0.01747358]
[1728863085990,0.20439866,62913.0,62912.0,0.003638]
[1728863086468,0.27587276,62913.0,62912.0,0.01747358]
[1728863086686,0.43482176,62913.0,62912.0,0.003638]
[1728863086911,0.36334766,62913.0,62912.0,0.003638]
[1728863087119,0.15755226,62913.0,62912.0,0.17642558]
[1728863087300,0.15755226,62913.0,62912.0,0.003638]
[1728863087550,0.10989866,62913.0,62912.0,0.01747358]
[1728863087769,0.18137276,62913.0,62912.0,0.003638]
[1728863087994,0.18137276,62913.0,62912.0,0.01747358]
[1728863088203,0.10989866,62913.0,62912.0,0.01747358]
[1728863089486,0.18137894,62913.0,62912.0,0.01747358]
[1728863090317,0.10989866,62913.0,62912.0,0.17642558]
[1728863090733,0.10989866,62913.0,62912.0,0.01747358]
[1728863091854,0.085,62913.0,62912.0,0.01747358]
[1728863093167,0.15648028,62913.0,62912.0,0.01747358]
[1728863093837,0.15649266,62913.0,62912.0,0.01747358]
[1728863094896,0.18139153,62913.0,62912.0,0.01747358]
[1728863096430,0.28590411,62913.0,62912.0,0.01747358]
[1728863096641,0.28590348,62913.0,62912.0,0.01747358]
[1728863097483,0.38122703,62913.0,62912.0,0.01747358]
[1728863098150,0.30622703,62913.0,62912.0,0.01747358]
[1728863098369,0.21090348,62913.0,62912.0,0.01747358]
[1728863098606,0.1303076,62913.0,62912.0,0.17642558]
[1728863098812,0.3064038,62913.0,62912.0,0.01747358]
[1728863099273,0.3064038,62913.0,62912.0,0.003638]
[1728863099501,0.3064038,62913.0,62912.0,0.01748056]
[1728863100154,0.4653528,62913.0,62912.0,0.01748056]
[1728863100579,0.3064038,62913.0,62912.0,0.01748056]
[1728863101898,0.28150493,62913.0,62912.0,0.01748056]
[1728863102328,0.28150493,62913.0,62912.0,0.17643256]
[1728863102329,0.07655819,62913.0,62912.0,0.17643256]
[1728863102548,0.05270655,62913.0,62912.0,0.17643256]
[1728863102766,0.005,62913.0,62912.0,0.17643256]
[1728863103222,0.005,62913.0,62912.0,0.33765657]
[1728863103937,0.005,62913.0,62912.0,0.41785657]
[1728863104376,0.005,62913.0,62912.0,0.41585657]
[1728863104800,0.006,62913.0,62912.0,0.34365657]
[1728863105239,0.006,62913.0,62912.0,0.34265657]
[1728863105625,0.007,62913.0,62912.0,0.35065657]
[1728863112263,0.002,62913.0,62912.0,0.35065657]
[1728863112511,0.002,62913.0,62912.0,0.53095657]
[1728863112751,0.002,62913.0,62912.0,0.56285657]
[1728863112978,0.002,62913.0,62912.0,0.61252897]
[1728863113206,0.002,62913.0,62912.0,0.7602354]
[1728863113431,0.002,62913.0,62912.0,0.71252897]
[1728863113642,0.001,62913.0,62912.0,0.70552897]
[1728863113866,0.002,62913.0,62912.0,0.71952897]
[1728863114127,0.002,62913.0,62912.0,0.70552897]
[1728863114330,0.005,62916.0,62915.0,0.190844]
[1728863114534,0.005,62916.0,62915.0,0.4640838]
[1728863114739,0.005,62916.0,62915.0,0.47784132]
[1728863116707,0.005,62916.0,62915.0,0.49184132]
[1728863117764,0.005,62916.0,62915.0,0.52158371]
[1728863118631,0.005,62916.0,62915.0,0.36263971]
[1728863118851,0.005,62916.0,62915.0,0.52158371]
[1728863119498,0.005,62919.0,62918.0,0.190837]
[1728863119707,0.005,62919.0,62918.0,0.4640768]
[1728863120126,0.005,62919.0,62918.0,0.47777062]
[1728863120840,0.005,62919.0,62918.0,0.50577062]
[1728863124925,0.005819,62925.0,62921.0,0.0784]
[1728863125144,0.005819,62925.0,62924.0,0.27093679]
[1728863125355,0.005819,62925.0,62924.0,0.4321608]
[1728863125566,0.005819,62925.0,62924.0,0.44581748]
[1728863127096,0.000819,62925.0,62924.0,0.45381748]
[1728863128173,0.000819,62925.0,62924.0,0.46281748]
[1728863129250,0.000819,62925.0,62924.0,0.56031748]
[1728863131060,0.000819,62925.0,62924.0,0.35080169]
[1728863136705,0.000819,62925.0,62924.0,0.36297289]
[1728863139081,0.000819,62925.0,62924.0,0.35080169]
[1728863139340,0.000819,62925.0,62924.0,0.46281748]
[1728863143195,0.000819,62925.0,62924.0,0.76991748]
[1728863143409,0.000819,62925.0,62924.0,0.81953207]
[1728863143860,0.000819,62925.0,62924.0,0.81053207]
[1728863144268,0.000819,62925.0,62924.0,0.82290438]
[1728863144685,0.000819,62925.0,62924.0,0.82090438]
[1728863145027,0.000819,62925.0,62924.0,0.95792017]
[1728863145450,1e-06,62925.0,62924.0,1.01496101]
[1728863145666,0.000819,62926.0,62925.0,0.491319]
[1728863145880,0.000819,62926.0,62925.0,0.74969639]
[1728863146068,1e-06,62926.0,62925.0,0.76121001]
[1728863146238,1e-06,62926.0,62925.0,0.71567122]
[1728863147238,1e-06,62926.0,62925.0,0.71367122]
[1728863147866,1e-06,62926.0,62925.0,0.72967122]
[1728863148094,1e-06,62926.0,62925.0,0.72767122]
[1728863148498,1e-06,62926.0,62925.0,1.42767122]
[1728863148962,1e-06,62926.0,62925.0,1.44167122]
[1728863149128,1e-06,62926.0,62925.0,1.44367122]
[1728863149508,1e-06,62926.0,62925.0,1.44167122]
[1728863149715,1e-06,62926.0,62925.0,1.50533122]
[1728863149965,1e-06,62926.0,62925.0,0.80533122]
[1728863152402,1e-06,62926.0,62925.0,0.80733122]
[1728863152878,1e-06,62926.0,62925.0,0.80533122]
[1728863153070,1e-06,62926.0,62925.0,0.80733122]
[1728863153298,1e-06,62926.0,62925.0,0.80533122]
[1728863153721,1e-06,62926.0,62925.0,0.91734701]
[1728863154173,1e-06,62926.0,62925.0,0.9668858]
[1728863154385,1e-06,62926.0,62925.0,0.91734701]
[1728863154826,0.00082,62931.0,62930.0,0.290806]
[1728863155066,0.00082,62931.0,62930.0,0.72885372]
[1728863155313,0.00082,62931.0,62930.0,0.83701427]
[1728863155550,0.00082,62931.0,62930.0,0.83901427]
[1728863155800,0.00082,62931.0,62930.0,0.83701427]
[1728863156055,0.00082,62931.0,62930.0,0.83901427]
[1728863157015,0.00082,62931.0,62930.0,0.85301427]
[1728863157501,0.00082,62931.0,62930.0,0.85101427]
[1728863157982,0.00082,62931.0,62930.0,0.86501427]
[1728863158233,0.00082,62931.0,62930.0,0.86701427]
[1728863158686,0.00082,62931.0,62930.0,0.86501427]
[1728863160403,0.00082,62931.0,62930.0,0.87672158]
[1728863161997,0.17242,62931.0,62930.0,0.44528269]
[1728863162223,0.17242,62931.0,62930.0,0.4956681]
[1728863162680,0.17742,62931.0,62930.0,0.20254409]
[1728863162923,0.17742,62931.0,62930.0,0.04363809]
[1728863163196,0.17742,62931.0,62930.0,0.02963809]
[1728863163443,0.17742,62931.0,62930.0,0.02763809]
[1728863163685,0.52995157,62931.0,62930.0,0.02763809]
[1728863163924,0.52995157,62931.0,62924.0,0.00164]
[1728863163925,0.163919,62925.0,62924.0,0.00164]
[1728863164192,0.50680064,62925.0,62924.0,0.00164]
[1728863164951,0.53169587,62925.0,62924.0,0.00164]
[1728863165482,0.36541423,62925.0,62924.0,0.00164]
[1728863167139,0.36741423,62925.0,62924.0,0.00264]
[1728863167616,0.37241423,62925.0,62924.0,0.00264]
[1728863167854,0.21349523,62925.0,62924.0,0.00264]
[1728863168090,0.21449523,62925.0,62924.0,0.162561]
[1728863168324,0.20949523,62925.0,62924.0,0.162561]
[1728863168549,0.20149523,62925.0,62924.0,0.160561]
[1728863168801,0.21249523,62925.0,62924.0,0.160561]
[1728863169520,0.21349523,62925.0,62924.0,0.160561]
[1728863170001,0.21249523,62925.0,62924.0,0.160561]
[1728863170250,0.21249523,62925.0,62924.0,0.164561]
[1728863170470,0.21249523,62925.0,62924.0,0.166561]
[1728863171596,0.21249523,62925.0,62924.0,0.17719529]
[1728863171827,0.1876,62925.0,62924.0,0.17719529]
[1728863174398,0.016,62925.0,62924.0,0.50470094]
[1728863174893,0.016,62925.0,62924.0,0.53660094]
[1728863175626,0.016,62925.0,62924.0,0.53260094]
[1728863175837,0.005,62925.0,62924.0,0.53060094]
[1728863176057,0.00082,62931.0,62924.0,0.53060094]
[1728863176058,0.005,62927.0,62926.0,0.158916]
[1728863176297,0.005,62927.0,62926.0,0.48642165]
[1728863176511,0.005,62927.0,62926.0,0.49705119]
[1728863177695,0.006,62927.0,62926.0,0.53895119]
[1728863178444,0.006,62927.0,62926.0,0.34076955]
[1728863178691,0.005,62927.0,62926.0,0.34276955]
[1728863178896,0.006,62927.0,62926.0,0.35476955]
[1728863179121,0.006,62927.0,62926.0,0.33076955]
[1728863179122,0.005,62927.0,62926.0,0.33076955]
[1728863179343,0.005,62927.0,62926.0,0.34476955]
[1728863180524,0.006,62927.0,62926.0,0.35776955]
[1728863180738,0.005,62927.0,62926.0,0.33076955]
[1728863181251,0.006,62927.0,62926.0,0.35076955]
[1728863181478,0.006,62927.0,62926.0,0.33240755]
[1728863181692,0.007,62927.0,62926.0,0.34540755]
[1728863181917,0.006,62927.0,62926.0,0.35940755]
[1728863182162,0.006,62927.0,62926.0,0.34640755]
[1728863182417,0.007,62927.0,62926.0,0.34240755]
[1728863182658,0.007,62927.0,62926.0,0.35440755]
[1728863183104,0.007,62927.0,62926.0,0.52068919]
[1728863183353,0.007,62927.0,62926.0,0.55258919]
[1728863183792,0.005,62928.0,62927.0,0.158914]
[1728863184023,0.000819,62930.0,62929.0,0.190809]
[1728863184240,0.005819,62930.0,62929.0,0.35203301]
[1728863184457,0.005819,62930.0,62929.0,0.36272836]
[1728863185378,0.000819,62930.0,62929.0,0.36272836]
[1728863185613,0.006819,62930.0,62929.0,0.37672836]
[1728863185856,0.006819,62930.0,62929.0,0.39072836]
[1728863186093,0.001819,62930.0,62929.0,0.39072836]
[1728863186326,0.006819,62930.0,62929.0,0.39072836]
[1728863187424,0.005819,62930.0,62929.0,0.37672836]
[1728863187642,0.006819,62930.0,62929.0,0.39072836]
[1728863194314,0.001819,62930.0,62929.0,0.39072836]
[1728863194532,0.006819,62930.0,62929.0,0.39072836]
[1728863195230,0.001819,62930.0,62929.0,0.39072836]
[1728863195692,0.001819,62930.0,62929.0,0.49072836]
[1728863198306,0.23772356,62944.0,62939.0,0.1319]
[1728863198523,0.23772356,62944.0,62940.0,0.45200501]
[1728863198739,0.23772356,62944.0,62940.0,0.46413922]
[1728863198987,0.005,62947.0,62940.0,0.46413922]
[1728863200504,0.005,62947.0,62940.0,0.47813922]
[1728863200955,0.00082,62947.0,62946.0,0.45704764]
[1728863201169,0.00082,62947.0,62946.0,0.61827165]
[1728863201606,0.00082,62947.0,62946.0,0.6303889]
[1728863202514,0.00082,62947.0,62946.0,0.6433889]
[1728863202944,0.00082,62947.0,62946.0,0.6573889]
[1728863203837,0.00082,62947.0,62946.0,0.67314035]
[1728863204476,0.00082,62947.0,62946.0,0.99087235]
[1728863205142,0.001639,62947.0,62946.0,0.99087235]
[1728863207311,0.001639,62947.0,62946.0,1.00298763]
[1728863209530,0.001639,62947.0,62946.0,0.99087235]
[1728863209731,0.080539,62947.0,62946.0,0.72459071]
[1728863209957,0.080539,62947.0,62946.0,0.69269071]
[1728863210750,0.080539,62947.0,62946.0,0.67693926]
[1728863214031,0.080539,62947.0,62946.0,0.70883926]
[1728863216848,0.080539,62947.0,62946.0,0.71047726]
[1728863220943,0.080539,62947.0,62946.0,0.67857726]
[1728863221185,0.171639,62947.0,62946.0,0.51735325]
[1728863221423,0.171639,62947.0,62946.0,0.19962125]
[1728863222897,0.171639,62947.0,62946.0,0.18662125]
[1728863223871,0.171639,62947.0,62946.0,0.17262125]
[1728863224107,0.171639,62947.0,62946.0,0.17862125]
[1728863224355,0.171639,62947.0,62946.0,0.18162125]
[1728863224615,0.080539,62947.0,62946.0,0.5091269]
[1728863224859,0.001639,62947.0,62946.0,0.5091269]
[1728863226827,0.001639,62947.0,62946.0,0.34284526]
[1728863231267,0.001639,62947.0,62946.0,0.5091269]
[1728863236152,0.001639,62947.0,62946.0,0.52090188]
[1728863236568,0.001639,62947.0,62946.0,0.35462024]
[1728863236835,0.001639,62947.0,62946.0,0.52090188]
[1728863239947,0.001639,62947.0,62946.0,0.46644943]
[1728863244309,0.000819,62947.0,62946.0,0.57827862]
[1728863244557,0.001639,62947.0,62946.0,0.57827862]
[1728863244792,0.000819,62947.0,62946.0,0.57827862]
[1728863247316,0.000819,62947.0,62946.0,0.46644943]
[1728863253623,0.000819,62947.0,62946.0,0.62790642]
[1728863253841,0.000819,62947.0,62946.0,0.51607792]
[1728863254078,0.000819,62947.0,62946.0,0.72790711]
[1728863255433,0.000819,62947.0,62946.0,0.61607792]
[1728863255649,0.000819,62947.0,62946.0,0.72790711]
[1728863257414,0.000819,62947.0,62946.0,0.75980711]
[1728863258059,0.000819,62947.0,62946.0,0.75380711]
[1728863258491,0.000819,62947.0,62946.0,0.76380711]
[1728863258966,0.000819,62947.0,62946.0,0.77680711]
[1728863259828,0.000819,62947.0,62946.0,0.76380711]
[1728863260298,0.000819,62947.0,62946.0,0.86040711]
[1728863260520,0.000819,62947.0,62946.0,0.9080551]
[1728863261474,0.000819,62947.0,62946.0,0.86040711]
[1728863261705,0.000819,62947.0,62946.0,0.63674873]
[1728863261938,0.000819,62947.0,62946.0,0.77780711]
[1728863268128,0.000819,62947.0,62946.0,0.91889901]
[1728863269702,0.000819,62947.0,62946.0,0.91891574]
[1728863269932,0.000819,62947.0,62946.0,0.91891604]
[1728863271951,0.000819,62947.0,62946.0,0.91892564]
[1728863276167,0.000819,62947.0,62946.0,0.82542564]
[1728863277377,0.000819,62947.0,62946.0,0.77780711]
[1728863278070,0.000819,62947.0,62946.0,0.82542564]
[1728863278820,0.000819,62947.0,62946.0,0.55414873]
[1728863279058,0.000819,62947.0,62946.0,0.35695952]
[1728863279298,0.001639,62947.0,62946.0,0.35695952]
[1728863280097,0.001639,62947.0,62946.0,0.19573551]
[1728863280098,0.176339,62947.0,62946.0,0.19573551]
[1728863280347,0.176339,62947.0,62946.0,0.1839582]
[1728863281297,0.176339,62947.0,62946.0,0.1709582]
[1728863281543,0.176339,62947.0,62946.0,0.1809582]
[1728863281796,0.176339,62947.0,62946.0,0.1939582]
[1728863282026,0.176339,62947.0,62946.0,0.1839582]
[1728863282267,0.176339,62947.0,62946.0,0.1849582]
[1728863282795,0.176339,62947.0,62946.0,0.0130922]
[1728863283028,0.176339,62947.0,62946.0,0.0170922]
[1728863283029,0.44703119,62947.0,62946.0,0.0170922]
[1728863283620,0.51852535,62947.0,62946.0,0.006638]
[1728863284060,0.52352535,62947.0,62946.0,0.006638]
[1728863284300,0.45203119,62947.0,62946.0,0.005638]
[1728863284539,0.52350224,62947.0,62946.0,0.001638]
[1728863284791,0.54938895,62947.0,62946.0,0.001638]
[1728863285041,0.55038895,62947.0,62946.0,0.001638]
[1728863285289,0.54938895,62947.0,62946.0,0.001638]
[1728863285515,0.4769179,62947.0,62946.0,0.001638]
[1728863285755,0.4789179,62947.0,62946.0,0.001638]
[1728863286036,0.4157224,62947.0,62946.0,0.002638]
[1728863286292,0.36808871,62947.0,62946.0,0.002638]
[1728863286549,0.20922571,62947.0,62946.0,0.002638]
[1728863286796,0.36808871,62947.0,62946.0,0.002638]
[1728863287034,0.20922571,62947.0,62946.0,0.0130922]
[1728863287739,0.20622571,62947.0,62946.0,0.0120922]
[1728863288228,0.20822571,62947.0,62946.0,0.0120922]
[1728863288489,0.20922571,62947.0,62946.0,0.0130922]
[1728863288742,0.20722571,62947.0,62946.0,0.0130922]
[1728863288982,0.20822571,62947.0,62946.0,0.002638]
[1728863289208,0.20922571,62947.0,62946.0,0.0130922]
[1728863289437,0.20922571,62947.0,62946.0,0.002638]
[1728863289924,0.20922571,62947.0,62946.0,0.0130922]
[1728863290166,0.20922571,62947.0,62946.0,0.002638]
[1728863290408,0.20922571,62947.0,62946.0,0.0130922]
[1728863290645,0.36808871,62947.0,62946.0,0.002638]
[1728863291665,0.343202,62947.0,62946.0,0.002638]
[1728863293680,0.345202,62947.0,62946.0,0.002638]
[1728863294154,0.343202,62947.0,62946.0,0.002638]
[1728863294392,0.366202,62947.0,62946.0,0.002638]
[1728863294619,0.368202,62947.0,62946.0,0.002638]
[1728863294857,0.39308951,62947.0,62946.0,0.002638]
[1728863295092,0.44069305,62947.0,62946.0,0.002638]
[1728863295544,0.39208951,62947.0,62946.0,0.002638]
[1728863295780,0.43965731,62947.0,62946.0,0.002638]
[1728863296246,0.43865731,62947.0,62946.0,0.002638]
[1728863296475,0.39108951,62947.0,62946.0,0.002638]
[1728863297662,0.39408951,62947.0,62946.0,0.003638]
[1728863298598,0.62281914,62947.0,62946.0,0.003638]
[1728863298839,0.50868427,62947.0,62946.0,0.003638]
[1728863299296,0.39685508,62947.0,62946.0,0.003638]
[1728863301582,0.39408951,62947.0,62946.0,0.003638]
[1728863301792,0.369202,62947.0,62946.0,0.003638]
[1728863304825,0.39409097,62947.0,62946.0,0.003638]
[1728863305074,0.39209097,62947.0,62946.0,0.003638]
[1728863305560,0.39409097,62947.0,62946.0,0.003638]
[1728863309057,0.5246382,62947.0,62946.0,0.003638]
[1728863309279,0.7976914,62947.0,62946.0,0.003638]
[1728863310166,1.00686085,62947.0,62946.0,0.003638]
[1728863310425,1.16808598,62947.0,62946.0,0.003638]
[1728863310629,1.19184323,62947.0,62946.0,0.003638]
[1728863311332,1.06905701,62947.0,62946.0,0.001638]
[1728863311559,1.07205701,62947.0,62946.0,0.002638]
[1728863311772,1.06116804,62947.0,62946.0,0.003638]
[1728863312927,1.17990669,62947.0,62946.0,0.003638]
[1728863313179,1.06112776,62947.0,62946.0,0.003638]
[1728863314139,1.17985808,62947.0,62946.0,0.003638]
[1728863314369,1.06112776,62947.0,62946.0,0.003638]
[1728863314813,1.08601954,62947.0,62946.0,0.003638]
[1728863321938,1.56112776,62947.0,62946.0,0.003638]
[1728863322170,1.56389364,62947.0,62946.0,0.003638]
[1728863322530,1.56411137,62947.0,62946.0,0.003638]
[1728863323183,1.70677494,62947.0,62946.0,0.003638]
[1728863324217,1.80995995,62947.0,62946.0,0.003638]
[1728863324638,1.56411137,62947.0,62946.0,0.003638]
[1728863324840,1.58900305,62947.0,62946.0,0.003638]
[1728863327357,1.58920076,62947.0,62946.0,0.003638]
[1728863328705,1.70102995,62947.0,62946.0,0.003638]
[1728863328918,0.00782,62934.0,62933.0,0.23772356]
[1728863329138,0.57489472,62934.0,62933.0,0.23772356]
[1728863329373,0.75063549,62934.0,62933.0,0.23772356]
[1728863329623,0.75063549,62934.0,62929.0,0.001638]
[1728863329624,0.189726,62930.0,62929.0,0.001638]
[1728863329856,0.34918,62930.0,62929.0,0.001638]
[1728863330084,0.29955519,62930.0,62929.0,0.001638]
[1728863331471,0.3709924,62930.0,62929.0,0.001638]
[1728863331714,0.3729924,62930.0,62929.0,0.001638]
[1728863331948,0.3709924,62930.0,62929.0,0.001638]
[1728863332679,0.3739924,62930.0,62929.0,0.001638]
[1728863333155,0.47835071,62930.0,62929.0,0.001638]
[1728863333413,0.47535071,62930.0,62929.0,0.001638]
[1728863333665,0.30155519,62930.0,62929.0,0.001638]
[1728863333902,0.37799078,62930.0,62929.0,0.001638]
[1728863334376,0.26616159,62930.0,62929.0,0.001638]
[1728863334897,0.29105555,62930.0,62929.0,0.001638]
[1728863335911,0.29105555,62930.0,62929.0,0.00909675]
[1728863336153,0.29105555,62930.0,62929.0,0.001638]
[1728863336659,0.21961996,62930.0,62929.0,0.001638]
[1728863336905,0.291072,62930.0,62929.0,0.001638]
[1728863337387,0.40290119,62930.0,62929.0,0.001638]
[1728863338629,0.4029209,62930.0,62929.0,0.001638]
[1728863339114,0.33144915,62930.0,62929.0,0.001638]
[1728863339365,0.33344915,62930.0,62929.0,0.001638]
[1728863339595,0.50736419,62930.0,62929.0,0.001638]
[1728863340560,0.60263358,62930.0,62929.0,0.001638]
[1728863341034,0.60270379,62930.0,62929.0,0.001638]
[1728863341773,0.46598064,62930.0,62929.0,0.001638]
[1728863344121,0.28407464,62930.0,62929.0,0.001638]
[1728863344377,0.06047961,62930.0,62929.0,0.001638]
[1728863344911,0.03771271,62930.0,62929.0,0.00912201]
[1728863345150,0.03771271,62930.0,62929.0,0.001638]
[1728863345377,0.03271271,62930.0,62929.0,0.001638]
[1728863345635,0.03471271,62930.0,62929.0,0.001638]
[1728863345866,0.03171271,62930.0,62929.0,0.00912201]
[1728863346104,0.03171271,62930.0,62929.0,0.001638]
[1728863346331,0.03271271,62930.0,62929.0,0.00912201]
[1728863346558,0.03271271,62930.0,62929.0,0.001638]
[1728863346787,0.03271271,62930.0,62929.0,0.002638]
[1728863347041,0.03271271,62930.0,62929.0,0.01012201]
[1728863347269,0.03271271,62930.0,62929.0,0.002638]
[1728863347509,0.08037232,62930.0,62929.0,0.01012201]
[1728863347769,0.08037232,62930.0,62929.0,0.002638]
[1728863348493,0.08037232,62930.0,62929.0,0.01012201]
[1728863348717,0.08037232,62930.0,62929.0,0.002638]
[1728863348945,0.08037232,62930.0,62929.0,0.01012201]
[1728863349196,0.08037232,62930.0,62929.0,0.002638]
[1728863349444,0.08038604,62930.0,62929.0,0.01012201]
[1728863349667,0.08038604,62930.0,62929.0,0.002638]
[1728863349900,0.08038604,62930.0,62929.0,0.01012201]
[1728863350148,0.08038604,62930.0,62929.0,0.002638]
[1728863350632,0.08038604,62930.0,62929.0,0.01012201]
[1728863350865,0.19161871,62930.0,62929.0,0.002638]
[1728863351116,0.19161871,62930.0,62929.0,0.01012201]
[1728863351397,0.19161871,62930.0,62929.0,0.002638]
[1728863351651,0.2631287,62930.0,62929.0,0.01010697]
[1728863351891,0.2631287,62930.0,62929.0,0.002638]
[1728863351892,0.23823599,62930.0,62929.0,0.002638]
[1728863352358,0.23823599,62930.0,62929.0,0.01010697]
[1728863352611,0.166726,62930.0,62929.0,0.01010697]
[1728863353602,0.43818282,62930.0,62929.0,0.01010697]
[1728863353961,0.52018282,62930.0,62929.0,0.01010697]
[1728863354140,0.52018282,62930.0,62929.0,0.002638]
[1728863354141,0.44984618,62930.0,62929.0,0.002638]
[1728863354824,0.44784618,62930.0,62929.0,0.002638]
[1728863355063,0.44984618,62930.0,62929.0,0.002638]
[1728863355297,0.44784618,62930.0,62929.0,0.002638]
[1728863356746,0.44984618,62930.0,62929.0,0.002638]
[1728863356989,0.55208836,62930.0,62929.0,0.002638]
[1728863358183,0.55008836,62930.0,62929.0,0.002638]